Cogmind - Beta 13 @@@ ROGUE MODE // 2024.04.06 @ 22:50:20 Player: michaelman Result: Self-destructed Performance ------------- Evolutions (2) 1000 Regions Visited (5) 1000 Robots Destroyed (24) 120 Value Destroyed (697) 697 Prototype IDs (0) 0 Alien Tech Used (0) 0 Bonus (142) 142 TOTAL SCORE: 2959 Bonus ------- Follower Combat Kills 259 Friendly Fire -117 Cogmind --------- Core Integrity 430/550 Matter 49/300 Energy 275/275 System Corruption 0% Temperature Cool (9) Movement Walking (200) Ox1 Location -8/Materials Parts ------- > --- POWER (1) -------- Deuterium Engine > --- PROPULSION (3) --- Titanium Leg > --- UTILITY (5) ------ Small Storage Unit Target Analyzer Hardened Medium Armor Plating > --- WEAPON (2) ------- High-powered Shotgun > --- INVENTORY (8) ---- Heavy Ion Engine Improved Medium Laser Autogun Improved Assault Rifle Minigun Rocket Launcher Peak State ------------ > --- POWER ------------ Deuterium Engine > --- PROPULSION ------- Aluminum Leg Titanium Leg Makeshift Leg > --- UTILITY ---------- Small Storage Unit Target Analyzer Reaction Control System Light Armor Plating > --- WEAPON ----------- Autogun High-powered Shotgun > --- INVENTORY -------- Heavy Ion Engine Deuterium Engine Improved Medium Laser Improved Assault Rifle Minigun Rocket Launcher [Rating: 25] Favorites ----------- Power Light Ion Engine Engine Light Ion Engine Propulsion Aluminum Leg Leg Aluminum Leg Utility Small Storage Unit Device Improved Terrain Scanner Storage Small Storage Unit Processor Target Analyzer Protection Light Armor Plating Weapon Light Assault Rifle Energy Gun Small Laser Ballistic Gun Light Assault Rifle Launcher Rocket Launcher Build | -11 -10 -10 -9 -9 -8 ------- Run | Yrd Mat Min Mat Sto Mat Slots Evolved 4 | . . . 2 . 2 Power . | . . . . . . Propulsion 1 | . . . . . 1 Utility 3 | . . . 2 . 1 Weapon . | . . . . . . Parts Attached 31 | 6 1 4 5 5 10 Power 5 | 1 . 1 . 2 1 Engine 5 | 1 . 1 . 2 1 Core . | . . . . . . Reactor . | . . . . . . Propulsion 6 | 2 . . 2 1 1 Treads . | . . . . . . Leg 6 | 2 . . 2 1 1 Wheel . | . . . . . . Hover . | . . . . . . Flight . | . . . . . . Utility 8 | 1 1 1 2 . 3 Device 3 | . 1 1 . . 1 Storage 1 | 1 . . . . . Processor 1 | . . . 1 . . Hackware . | . . . . . . Protection 3 | . . . 1 . 2 Artifact . | . . . . . . Weapon 12 | 2 . 2 1 2 5 Energy Gun 1 | 1 . . . . . Energy Cannon . | . . . . . . Ballistic Gun 8 | 1 . 2 1 1 3 Ballistic Cannon . | . . . . . . Launcher 3 | . . . . 1 2 Special Weapon . | . . . . . . Impact Weapon . | . . . . . . Slashing Weapon . | . . . . . . Piercing Weapon . | . . . . . . Special Melee Weapon . | . . . . . . Unidentified Prototypes . | . . . . . . Parts Lost 12 | . . 2 . 4 6 Power 2 | . . 1 . 1 . Propulsion 2 | . . . . . 2 Utility 5 | . . 1 . 2 2 Weapon 3 | . . . . 1 2 Highest Loss Streak 4 | . . 1 . 4 4 To Critical Strikes . | . . . . . . Average Slot Usage (%) 86 | . 93 87 94 89 73 Engine 11 | . 14 13 11 10 9 Leg 24 | . 28 28 22 22 21 Device 5 | . 7 2 11 6 1 Storage 11 | . 14 14 11 11 9 Processor 5 | . . . 11 11 9 Protection 3 | . . . 5 6 6 Energy Gun 3 | . 14 3 . . . Ballistic Gun 19 | . 14 24 22 20 17 Naked Turns . | . . . . . . Heaviest Build 28 | 13 14 14 16 20 28 Greatest Support 47 | 20 20 20 20 30 47 Greatest Overweight (x) 3 | 3 . . . . 1 Average Overweight (x) . | . . . . . . Largest Inventory Capacity 8 | 8 8 8 8 8 8 Average Capacity 7 | 7 8 8 8 8 8 Most Carried 8 | 4 5 8 8 8 8 Average Carried 5 | 1 3 3 7 7 6 Final Capacity 8 | 8 8 8 8 8 8 Final Carried 8 | 1 5 7 8 7 6 Class Distribution -------------------- 77% | Mutant 22% | Scavenger-Mutant Dominant Class ---------------- Mutant | -10/Materials Mutant | -10/Mines Scavenger-Mutant | -9/Materials Scavenger-Mutant | -9/Storage Mutant | -8/Materials Resources | -11 -10 -10 -9 -9 -8 ----------- Run | Yrd Mat Min Mat Sto Mat Matter Collected 752 | 210 108 77 120 95 142 Remotely . | . . . . . . Salvage Created 622 | . 116 54 42 152 258 Parts 38 | . 10 . 4 11 13 Haulers Intercepted 1 | . . . 1 . . Recyclers Shooed 2 | . . . . 1 1 Parts Field Recycled . | . . . . . . Retrieved Matter . | . . . . . . Parts Self-Destructed . | . . . . . . Prevented . | . . . . . . Kills | -11 -10 -10 -9 -9 -8 ------- Run | Yrd Mat Min Mat Sto Mat Combat Hostiles Destroyed 21 | . 6 1 . 6 8 Guns 15 | . 6 1 . 5 3 AOE 6 | . . . . 1 5 Classes Destroyed 8 | . 2 1 1 1 3 Hauler 1 | . . . 1 . . Watcher 1 | . 1 . . . . Swarmer 10 | . 6 . . 4 . Grunt 5 | . . 1 . 1 3 Duelist 1 | . . . . . 1 Sentry 3 | . . . . 2 1 Specialist 2 | . . . . . 2 Hunter 1 | . . . . . 1 Best Kill Streak 5 | . 4 1 1 4 5 Combat Bots Only 5 | . 3 1 . 4 5 Max Kills in Single Turn 2 | . 2 1 1 2 1 Gunslinging 1 | . 1 . . 1 . Exploded 1 | . . . . 1 1 Melee . | . . . . . . Uniques/NPCs Destroyed . | . . . . . . Combat | -11 -10 -10 -9 -9 -8 -------- Run | Yrd Mat Min Mat Sto Mat Hostile Shots Fired 244 | . 33 23 5 83 100 Missed 78 | . 9 8 3 35 23 Damage Taken 2291 | . 200 228 31 720 1112 Core 417 | . 26 96 . 175 120 Absorbed by Shields . | . . . . . . Core Remaining (%) 69 | 100 . 51 . 56 . Volleys Fired 98 | . 16 15 14 27 26 Largest 2 | . 2 2 2 2 2 Hottest 60 | . 60 60 43 43 48 Shots Fired 171 | . 32 30 28 38 43 Gun 155 | . 32 30 28 30 35 Cannon . | . . . . . . Launcher 16 | . . . . 8 8 Special . | . . . . . . Kinetic 124 | . 16 15 28 30 35 Thermal 31 | . 16 15 . . . Explosive 16 | . . . . 8 8 Electromagnetic . | . . . . . . Robot Hit Streak 10 | . 5 10 9 7 7 Robot Miss Streak 6 | . 6 2 3 3 3 Penetration Max . | . . . . . . Secondary Targets 2 | . 1 . . 1 . Max Gunslinging Chain 1 | . 1 . . 1 . Shots Hit Robots 103 | . 17 19 18 18 31 Core Hits 45 | . 7 3 2 11 22 Critical Kills 1 | . . . . 1 . Critical Parts Destroyed 1 | . . . . . 1 Critical Strikes 3 | . . . . 1 2 Destroy 3 | . . . . 1 2 Melee Attacks . | . . . . . . Impact . | . . . . . . Slashing . | . . . . . . Piercing . | . . . . . . Sneak Attacks . | . . . . . . Combat Hostiles . | . . . . . . Follow-up Attacks . | . . . . . . Damage Inflicted 2100 | . 209 260 212 426 993 Guns 1453 | . 209 260 212 255 517 Cannons . | . . . . . . Explosions 635 | . . . . 159 476 Melee . | . . . . . . Ramming 12 | . . . . 12 . Kinetic 1232 | . 124 124 212 255 517 Thermal 221 | . 85 136 . . . Explosive 635 | . . . . 159 476 Electromagnetic . | . . . . . . Impact . | . . . . . . Slashing . | . . . . . . Piercing . | . . . . . . Highest Corruption . | . . . . . . Average Corruption . | . . . . . . Corruption Purged . | . . . . . . Corruption Blocked . | . . . . . . Overload Shots . | . . . . . . Overflow Damage 19 | . . . . 4 15 Projectiles . | . . . . . . Explosions 19 | . . . . 4 15 Melee . | . . . . . . Knockbacks . | . . . . . . Impact . | . . . . . . Kinetic . | . . . . . . Secondary . | . . . . . . Self-Inflicted Damage 167 | . . . . 120 47 Shots 6 | . . . . 5 1 Rammed . | . . . . . . Targets Rammed 2 | . . . . 2 . Kicked 2 | . . . . 2 . Crushed . | . . . . . . Highest Temperature 112 | . . 112 4 16 40 Average Temperature 29 | . . 72 1 3 13 Received Heat Transfer 702 | . . 135 9 171 387 Siege Activations . | . . . . . . Robots Corrupted . | . . . . . . Combat Hostiles . | . . . . . . Parts Fried . | . . . . . . Impact Corruptions . | . . . . . . Robots Melted . | . . . . . . Combat Hostiles . | . . . . . . Parts Melted . | . . . . . . Heat Transferred 500 | . 200 300 . . . Parts Sabotaged . | . . . . . . Parts Stolen . | . . . . . . Parts Stripped . | . . . . . . Power Chain Reactions . | . . . . . . Alert | -11 -10 -10 -9 -9 -8 ------- Run | Yrd Mat Min Mat Sto Mat Peak Influence 361 | . 250 67 201 287 361 Initial 120 | . . 19 8 84 120 Average 148 | . 142 24 157 191 258 Maximum Alert Level 1 | . 1 . 1 1 1 Low Security (%) 70 | 100 63 100 94 57 35 Level 1 29 | . 36 . 5 42 64 Level 2 . | . . . . . . Level 3 . | . . . . . . Level 4 . | . . . . . . Level 5 . | . . . . . . High Security . | . . . . . . Max Security . | . . . . . . Squads Dispatched 6 | . . 1 . . 5 Investigation 2 | . . 1 . . 1 Extermination . | . . . . . . Reinforcement 2 | . . . . . 2 Assault . | . . . . . . Garrison 2 | . . . . . 2 Intercept . | . . . . . . Searches Triggered . | . . . . . . Construction Impeded . | . . . . . . Haulers Reinforced . | . . . . . . Active Scanning Responses . | . . . . . . Cargo Convoy Interrupts . | . . . . . . Stealth | -11 -10 -10 -9 -9 -8 --------- Run | Yrd Mat Min Mat Sto Mat Distress Signals 3 | . . . . 1 2 Communications Jammed . | . . . . . . Distress Signals . | . . . . . . Times Spotted 48 | . 13 1 6 11 17 Peak Tracking Total 7 | . 4 2 3 3 7 Tactical Retreats . | . . . . . . Traps | -11 -10 -10 -9 -9 -8 ------- Run | Yrd Mat Min Mat Sto Mat Traps Triggered 1 | . . . . . 1 Indirectly . | . . . . . . Trap Hack Attempts . | . . . . . . Triggered . | . . . . . . Disarmed . | . . . . . . Reprogrammed . | . . . . . . Reused . | . . . . . . Traps Extracted . | . . . . . . Installed . | . . . . . . Triggered . | . . . . . . Machines | -11 -10 -10 -9 -9 -8 ---------- Run | Yrd Mat Min Mat Sto Mat Machines Disabled 4 | . 1 . . 1 2 Max in Single Turn 1 | . 1 . . 1 1 Machines Repaired . | . . . . . . Machines Dismantled . | . . . . . . Machines Sabotaged . | . . . . . . Overloaded Fab Kills . | . . . . . . Hacking | -11 -10 -10 -9 -9 -8 --------- Run | Yrd Mat Min Mat Sto Mat Machines Accessed 6 | . 4 1 . 1 . Terminals 5 | . 4 . . 1 . Fabricators . | . . . . . . Repair Stations . | . . . . . . Recycling Units . | . . . . . . Scanalyzers . | . . . . . . Garrison Access . | . . . . . . Total Hacks 9 | . 7 1 . 1 . Successful 9 | . 7 1 . 1 . Failed . | . . . . . . Catastrophic . | . . . . . . Database Lockouts . | . . . . . . Manual . | . . . . . . Terminals 8 | . 7 . . 1 . Fabricators . | . . . . . . Repair Stations . | . . . . . . Recycling Units . | . . . . . . Scanalyzers . | . . . . . . Garrison Access . | . . . . . . Terminal Hacks 9 | . 7 1 . 1 . Open Door 2 | . . 1 . 1 . Emergency Access Points 1 | . 1 . . . . Alert Level 2 | . 2 . . . . Dispatch Records 1 | . 1 . . . . Investigation Status 1 | . 1 . . . . Reinforcement Status 1 | . 1 . . . . Hauler Manifests 1 | . 1 . . . . Fabricator Hacks . | . . . . . . Repair Station Hacks . | . . . . . . Recycling Unit Hacks . | . . . . . . Scanalyzer . | . . . . . . Garrison Access Hacks . | . . . . . . Unauthorized Hacks . | . . . . . . Terminals . | . . . . . . Fabricators . | . . . . . . Repair Stations . | . . . . . . Recycling Units . | . . . . . . Scanalyzers . | . . . . . . Garrison Access . | . . . . . . Data Cores Recovered 1 | . . . 1 . . Used . | . . . . . . Hacking Detections 1 | . 1 . . . . Full Trace Events . | . . . . . . Feedback Events . | . . . . . . Feedback Blocked . | . . . . . . Robot Schematics Acquired . | . . . . . . Robots Built . | . . . . . . Authchips . | . . . . . . Time . | . . . . . . Total Robot Build Rating . | . . . . . . Part Schematics Acquired . | . . . . . . Parts Built . | . . . . . . Authchips . | . . . . . . Time . | . . . . . . Total Part Build Rating . | . . . . . . Parts Repaired . | . . . . . . Time . | . . . . . . Parts Recycled . | . . . . . . Recycled Matter . | . . . . . . Retrieved Matter . | . . . . . . Retrieved Components . | . . . . . . Parts Scanalyzed . | . . . . . . Part Schematics Acquired . | . . . . . . Parts Damaged . | . . . . . . Bothacking | -11 -10 -10 -9 -9 -8 ------------ Run | Yrd Mat Min Mat Sto Mat Used RIF Installer . | . . . . . . Robots Hacked . | . . . . . . Non-combat . | . . . . . . Combat . | . . . . . . Robot Hacks Applied . | . . . . . . Relay Couplers Released . | . . . . . . Fabnet Peak Effective % . | . . . . . . Robots Rewired . | . . . . . . Allies Hacked . | . . . . . . Hacks Repelled . | . . . . . . Allies | -11 -10 -10 -9 -9 -8 -------- Run | Yrd Mat Min Mat Sto Mat Total Allies 5 | . . 5 . . . Largest Group 4 | . . 4 3 2 . Highest-Rated Group 47 | . . 47 39 32 . Highest-Rated Ally 31 | . . 31 16 16 . Total Orders . | . . . . . . Ally Attacks 44 | . . 13 24 7 . Total Damage 490 | . . 166 245 79 . Kills 9 | . . 3 5 1 . Allies Corrupted . | . . . . . . Allies Melted . | . . . . . . Intel | -11 -10 -10 -9 -9 -8 ------- Run | Yrd Mat Min Mat Sto Mat Robot Analysis Total . | . . . . . . Derelict Logs Recovered 1 | . . 1 . . . Drone Launches . | . . . . . . Drone Recoveries . | . . . . . . Exploration | -11 -10 -10 -9 -9 -8 ------------- Run | Yrd Mat Min Mat Sto Mat Turns Passed 2074 | 88 413 419 358 331 465 Spaces Moved 1355 | 64 293 297 257 206 238 Core 15 | 15 . . . . . Treads . | . . . . . . Legs 1340 | 49 293 297 257 206 238 Wheels . | . . . . . . Hover . | . . . . . . Flight . | . . . . . . Fastest Speed 50 | 50 120 120 120 120 130 Average Speed 124 | 117 120 120 120 123 144 Slowest Speed 200 | 200 120 120 120 130 200 Overloaded Moves . | . . . . . . Propulsion Burnouts . | . . . . . . Robots Hopped . | . . . . . . Cave-ins Triggered . | . . . . . . Exploration Rate (%) 32 | 4 46 64 14 45 21 Regions Visited 5 Branch Regions 2 Pre-discovered Areas 1 | . . 1 . . . Known Exits Taken . | . . . . . . Unknown Exits Taken 5 | 1 1 1 1 1 . Scrap Searched . | . . . . . . Spaces Dug 7 | . . . . 7 . Terrain Destroyed 77 | . . . . 22 55 Melee . | . . . . . . Projectile . | . . . . . . AOE 77 | . . . . 22 55 Terrain Rammed . | . . . . . . Walls Destroyed . | . . . . . . Machines Disabled . | . . . . . . Actions | -11 -10 -10 -9 -9 -8 --------- Run | Yrd Mat Min Mat Sto Mat Total 1580 | 76 322 329 284 249 320 Wait 56 | . 8 8 . 5 35 Move 1350 | 63 292 296 256 205 238 Hop . | . . . . . . Pick Up 31 | 7 5 5 5 3 6 Fast Attach 3 | . . . 1 . 2 Attach 17 | 6 1 2 1 2 5 Detach 1 | . . . . . 1 Swap 11 | . . 2 3 3 3 Drop 11 | . . 1 4 2 4 Fire 98 | . 16 15 14 27 26 Melee . | . . . . . . Ram . | . . . . . . Kick 2 | . . . . 2 . Crush . | . . . . . . Escape Stasis . | . . . . . . Rewire . | . . . . . . Trap . | . . . . . . Miscellaneous . | . . . . . . Route ------- -11/Scrapyard -10/Materials (discovered 3 exits: [*Mat x2] / *Min) -10/Mines (discovered 2 exits: [*Mat x2]) -9/Materials -9/Storage -8/Materials History --------- Turn | Location | Event 8 | -11/Scrapyard | Discovered new exit (range 16) 89 | -11/Scrapyard | Entered Materials 279 | -10/Materials | Discovered new exit (range 7) 312 | -10/Materials | Build established: Mutant 369 | -10/Materials | Discovered new exit (range 14) 462 | -10/Materials | Discovered new exit (range 8) 502 | -10/Materials | Entered Mines 652 | -10/Mines | Learned location of Zion (-6) 815 | -10/Mines | Discovered new exit (range 6) 837 | -10/Mines | Assisted by bots powering up and referring to "LRC-V3" 886 | -10/Mines | Discovered new exit (range 7) 891 | -10/Mines | Met a Derelict shopkeep closing up shop 921 | -10/Mines | Entered Materials 921 | -9/Materials | Accompanied by 3 allies 921 | -9/Materials | Evolved 2 slots: Utility x2 980 | -9/Materials | Discovered new exit (range 9) 1279 | -9/Materials | Entered Storage 1279 | -9/Storage | Accompanied by 2 allies 1316 | -9/Storage | Build established: Scavenger-Mutant 1520 | -9/Storage | Lost 4 parts (1p2u1w) 1600 | -9/Storage | Discovered new exit (range 9) 1610 | -9/Storage | Entered Materials 1610 | -8/Materials | Evolved 2 slots: Propulsion x1, Utility x1 1761 | -8/Materials | Build established: Mutant 1931 | -8/Materials | Garrison activated, responded to threat 1974 | -8/Materials | Lost 4 parts (2n2u) 2075 | -8/Materials | Self-destructed Last Messages --------------- Plating. 01996_ R-06 Scavenger collects Particle Gun. 01998_ Dropped Deuterium Engine. 01998_ Dropped Hpw. Shotgun. 02035_ K-01 Serf cleans the Atomic Centrifuge. 02036_ Critical hit (Burn: +37). 02037_ Triggered Alarm Trap. 02037_ An alarm sounds. 02037_ ALERT: Alarm triggered, dispatching investigation squad. 02041_ Slug penetrates G-47 Trooper. 02044_ Penetrated by Slug. 02050_ Critical hit (Burn: +37). 02051_ U-05 Engineer lays Concrete. 02052_ Slug penetrates Wall. 02053_ U-05 Engineer lays Concrete. 02060_ R-06 Scavenger collects Hpw. Shotgun. 02064_ R-06 Scavenger collects Deuterium Engine. 02067_ Autogun destroyed. 02073_ Critical hit (Burn: +37). Map ----- +----------------------------------------------------+ | ?????????????????????????????????????????????? | | ?????????????????????????????????????????????? | | ???????????????##########????????????????????? | | ???????????????# #????????????????????? | | ???????????????# """ #????????????????????? | | ???????????????# """ =#????????????????????? | | ???????????????# """ #???????????#????????? | | ????????????##?# #?????????? #????????? | | ???????????? ?# """ #????????? #?###????? | | ????????????# ?# """ #???????? # ?????? | | ????????????# ?# " #??????? / ???????? | | ????????????# ?# #?????? #????????? | | ???????????## ######+########## #????????? | | ???????????# # ?? | | ???????????# + ""???? | | ???????????# #????????? | | ???????????### #### ##### #########????????? | | ????????######+####ggu#???# #????????????????? | | ????????# !] # g#####/#####????????????? | | ????????# !] # # #????????????? | | ????????# ] # # ! !#????????????? | | ????????# # # #????????????? | | ????????# # # """ """ #????????????? | | ????????# """ + ; """ """ #????????????? | | ????????# """ # # """ """ #????????????? | | ????????# """ # u@# #????????????? | | ????????########### # !#????????????? | | ??????????????????# w#?########?????????????? | | ??????????????????# ########???????????????? | | ??????????????????#w # """ #???????????????? | | ??????????????????+ + """ #???????????????? | | ??????????????????# # """ #???????????????? | | ???????????#??????# # #???????????????? | | ???????????#/###### # #???????????????? | | ???????????# # #???????????????? | | ???????????+ ########???????????????? | | ???????????# k#??????????????????????? | | ???????????### #### #??????????????????????? | | ?????????????#????# #??????????????????????? | | ??????????????????# #??????????????????????? | | ??????????????????# ########???????????????? | | ??????????????????# # [#???????????????? | | ??????????????????# # #???????????????? | | ??????????????????# # #???????????????? | | ??????????????????# + #????????##?????? | | ??????###########?# # #??????? ###???? | | ??????# #?# # #?????? ???? | | ??????#* #?# ########????? ????? | | ??????# #?# #??????###??/ ?????? | | ??????# """ """ #?# #???#### ### ???????? | +----------------------------------------------------+ Best States ------------- Heat Dissipation 31 Energy Generation 14 Energy Capacity 275 Matter Stores 300 Matter Capacity 300 Sight Range 16 Terrain Scan Range 16 Terrain Scan Density 10 Armor Coverage 225 Evasion (%) 55 Target Analysis 5 Item Schematics ----------------- None Robot Schematics ------------------ None Fabricated ------------ Nothing Alien Tech Used ----------------- None Achievements -------------- Backstab Oops Shopping List Challenges ------------ None Game ------ Seed AutogunCoordinationJammer Manual? 0 Play Time 00:33:38 Cumulative 3.9 hours Start 2024.04.06 @ 22:12:50 End 2024.04.06 @ 22:50:20 Sessions 1 Manual Loads 0 Difficulty Rogue Special Mode None Game No. 7 Rogue 7 Adventurer 0 Explorer 0 Win Type - Total 0 Types 0/0/0/0/0/0/0/0/0 Lore% 2 Gallery% 7 Achievement% 10 Wizard Run 0 Options --------- Layout 1 ASCII 0 Keyboard 0 Movement Mouse Keybinds 0 Fullscreen 1 Font 24/Swanston Map View 50x35 Zoom Use 0% Tactical HUD 1 Map Filters NONE Filters NONE Steam 1 RUN: 4e7c093f-a979-442e-9ac0-ab06466d3ca9